{"text_format":"2","workbook":"xlsx","n_sheets":1,"sheets":["Sheet1"],"not_rendered":{"charts":0,"images":0,"macros":0,"external_links":0,"defined_names":0,"comments":0,"pivot_tables":0},"unopened":[],"bounds":{"document_bytes":16777216,"sheet_cells":100000,"run_cost":"one","rows_first":2000,"rows_last":500,"rows_between":2000,"halvings":0,"cell_chars":16384,"cell_head_chars":4096},"cells_cut":0,"cells_raw":0,"read":"whole","date_system":"1900"}

{"sheet":"Sheet1","index":0,"n_rows":25,"n_cols":10,"rows_kept":25,"cut":false,"hidden":false,"merged":[]}
["SampleID","SampleName","CapID","CapName","Treatment","Organism","Larval Instar","Tissue","Parafa","Date of isolation"]
["RI0043_RNA","H2O-1",{"$f":"A2","v":"RI0043_RNA"},{"$f":"B2","v":"H2O-1"},"H2O","CPB","3rd","whole larva totRNA","MPE","may2017"]
["RI0044_RNA","H2O-2",{"$f":"A3","v":"RI0044_RNA"},{"$f":"B3","v":"H2O-2"},"H2O","CPB","3rd","whole larva totRNA","MPE","may2017"]
["RI0045_RNA","H2O-3","RI0045_RNA","H2O-3","H2O","CPB","3rd","whole larva totRNA","MPE","may2017"]
["RI0046_RNA","H2O-4","RI0046_RNA","H2O-4","H2O","CPB","3rd","whole larva totRNA","MPE","may2017"]
["RI0047_RNA","dsegfp-1","RI0047_RNA","dsegfp-1","dsegfp","CPB","3rd","whole larva totRNA","MPE","may2017"]
["RI0048_RNA","dsegfp-2","RI0048_RNA","dsegfp-2","dsegfp","CPB","3rd","whole larva totRNA","MPE","may2017"]
["RI0049_RNA","dsegfp-3","RI0049_RNA","dsegfp-3","dsegfp","CPB","3rd","whole larva totRNA","MPE","may2017"]
["RI0050_RNA","dsegfp-4","RI0050_RNA","dsegfp-4","dsegfp","CPB","3rd","whole larva totRNA","MPE","may2017"]
["RI0051_RNA","dsvATPaseE-1","RI0051_RNA","dsvATPaseE-1","dsvATPaseE","CPB","3rd","whole larva totRNA","MPE","may2017"]
["RI0052_RNA","dsvATPaseE-2","RI0052_RNA","dsvATPaseE-2","dsvATPaseE","CPB","3rd","whole larva totRNA","MPE","may2017"]
["RI0053_RNA","dsvATPaseE-3","RI0053_RNA","dsvATPaseE-3","dsvATPaseE","CPB","3rd","whole larva totRNA","MPE","may2017"]
["RI0054_RNA","dsvATPaseE-4","RI0054_RNA","dsvATPaseE-4","dsvATPaseE","CPB","3rd","whole larva totRNA","MPE","may2017"]
["RI0055_RNA","dsalas-1","RI0055_RNA","dsalas-1","dsalas","CPB","3rd","whole larva totRNA","MPE","may2017"]
["RI0056_RNA","dsalas-2","RI0056_RNA","dsalas-2","dsalas","CPB","3rd","whole larva totRNA","MPE","may2017"]
["RI0057_RNA","dsalas-3","RI0057_RNA","dsalas-3","dsalas","CPB","3rd","whole larva totRNA","MPE","may2017"]
["RI0058_RNA","dsalas-4","RI0058_RNA","dsalas-4","dsalas","CPB","3rd","whole larva totRNA","MPE","may2017"]
["RI0059_RNA","dsJHBP-1","RI0059_RNA","dsJHBP-1","dsJHBP","CPB","3rd","whole larva totRNA","MPE","may2017"]
["RI0060_RNA","dsJHBP-2","RI0060_RNA","dsJHBP-2","dsJHBP","CPB","3rd","whole larva totRNA","MPE","may2017"]
["RI0061_RNA","dsJHBP-3","RI0061_RNA","dsJHBP-3","dsJHBP","CPB","3rd","whole larva totRNA","MPE","may2017"]
["RI0062_RNA","dsJHBP-4","RI0062_RNA","dsJHBP-4","dsJHBP","CPB","3rd","whole larva totRNA","MPE","may2017"]
["RI0063_RNA","dsmesh-1","RI0063_RNA","dsmesh-1","dsmesh","CPB","3rd","whole larva totRNA","MPE","may2017"]
["RI0064_RNA","dsmesh-2","RI0064_RNA","dsmesh-2","dsmesh","CPB","3rd","whole larva totRNA","MPE","may2017"]
["RI0065_RNA","dsmesh-3","RI0065_RNA","dsmesh-3","dsmesh","CPB","3rd","whole larva totRNA","MPE","may2017"]
["RI0066_RNA","dsmesh-4","RI0066_RNA","dsmesh-4","dsmesh","CPB","3rd","whole larva totRNA","MPE","may2017"]